fUSD/lending_fUSD_20240216
["ID","MTS","AMOUNT","RATE_DAILY","PERIOD"]
[314183365,1708050645102,-500.0,0.00039726,7]
[314183366,1708050645112,-500.0,0.00039726,7]
[314183367,1708050645121,-500.0,0.00039726,7]
[314183368,1708050645130,-564.25,0.00039726,7]
[314183369,1708050645139,-500.0,0.00039726,7]
[314183370,1708050645148,-500.0,0.00039726,7]
[314183371,1708050645157,-595.77,0.00039726,7]
[314183372,1708050645166,-500.0,0.00039726,7]
[314183373,1708050645175,-500.0,0.00039726,7]
[314183374,1708050645184,-692.12,0.00039726,7]
[314183375,1708050645193,-500.0,0.00039726,7]
[314183376,1708050645202,-530.21,0.00039726,7]
[314183377,1708050645211,-468.05212889,0.00039726,7]
[314183378,1708050645220,-850.98,0.00039726,7]
[314183379,1708050645229,-500.0,0.00039726,7]
[314183380,1708050645238,-500.0,0.00039726,7]
[314183381,1708050645248,-642.51,0.00039726,7]
[314183382,1708050645257,-1866.3,0.00039726,7]
[314183383,1708050645268,-500.0,0.00039726,7]
[314183384,1708050645277,-500.0,0.00039726,7]
[314183385,1708050645286,-500.0,0.00039726,7]
[314183386,1708050645295,-500.0,0.00039726,7]
[314183387,1708050645304,-583.25,0.00039726,7]
[314183388,1708050645314,-177.76783251,0.00039726,7]
[314183389,1708050645324,-500.0,0.00039726,7]
[314183390,1708050645333,-500.0,0.00039726,7]
[314183391,1708050645348,-1327.62,0.00039726,7]
[314183392,1708050645358,-500.0,0.00039726,7]
[314183393,1708050645367,-574.46,0.00039726,7]
[314183394,1708050645378,-500.0,0.00039726,7]
[314183395,1708050645387,-521.88,0.00039726,7]
[314183396,1708050645397,-678.37,0.00039726,7]
[314183397,1708050645407,-1540.41,0.00039726,7]
[314183398,1708050645419,-500.0,0.00039726,7]
[314183399,1708050645428,-7593.28,0.00039726,7]
[314183405,1708050645547,-500.0,0.00039726,7]
[314183406,1708050645557,-352.73100676,0.00039726,7]
[314183407,1708050645567,-601.07,0.00039726,7]
[314183408,1708050645576,-500.0,0.00039726,7]
[314183409,1708050645585,-583.72,0.00039726,7]
[314183410,1708050645595,-729.85,0.00039726,7]
[314183411,1708050645603,-500.0,0.00039726,7]
[314183412,1708050645612,-702.97,0.00039726,7]
[314183413,1708050645622,-8017.91,0.00039726,7]
[314183414,1708050645631,-1158.9,0.00039726,7]
[314183415,1708050645640,-500.0,0.00039726,7]
[314183416,1708050645649,-155.04,0.00039726,2]
[314183417,1708050645658,-945.0,0.00039737,7]
[314183418,1708050645667,-565.0,0.00039737,7]
[314183419,1708050645676,-728.0,0.00039737,7]
[314183420,1708050645686,-200.0,0.00039737,7]
[314183421,1708050645695,-151.021624,0.00039748,25]
[314183422,1708050645705,-8745.05875292,0.00039768,13]
[314183423,1708050645714,-152.0,0.00039774,7]
[314183424,1708050645724,-153.53778306,0.0003978,2]
[314183425,1708050645733,-154.44,0.00039782,2]
[314183426,1708050645742,-2373.0,0.0003979,2]
[314183427,1708050645751,-151.021624,0.00039798,24]
[314183428,1708050645761,-421557.4392967,0.000398,10]
[314183429,1708050645772,-200.0,0.00039839,10]
[314183430,1708050645781,-5000.0,0.0003986,14]
[314183431,1708050645791,-209.19864569,0.00039863,7]
[314183432,1708050645800,-1013.21389927,0.00039869,14]
[314183433,1708050645810,-3000.0,0.0003987,2]
[314183434,1708050645820,-5679.25480584,0.00039877,2]
[314183435,1708050645829,-150.0,0.00039879,2]
[314183436,1708050645838,-150.0,0.00039879,2]
[314183437,1708050645847,-150.0,0.00039879,2]
[314183438,1708050645857,-150.0,0.00039879,2]
[314183439,1708050645866,-592882.60504004,0.0003988,2]
[314183440,1708050646019,-168574.58731577,0.0003988,2]
[314183441,1708050646032,-195762.29624589,0.0003988,2]
[314183442,1708050646044,-13734.75335961,0.0003988,2]
[314183443,1708050646269,-4052.38285383,0.0003518,10]
[314183444,1708050646279,-478.94013848,0.00038356,7]
[314183445,1708050646288,-2411.75117658,0.0003871,2]
[314183446,1708050646297,-32251.33997008,0.0003988,2]
[314183447,1708050646309,-1246.12547997,0.0003988,2]
[314183448,1708050646325,-17153.55357647,0.0003988,2]
[314183449,1708050646351,-397402.22934449,0.0003988,2]
[314183450,1708050646365,-207374.07120754,0.0003988,2]
[314183451,1708050646376,-40548.10055742,0.0003988,2]
[314183452,1708050646496,-201.11567192,0.00038799,2]
[314183453,1708050646506,-438.85558161,0.00039067,31]
[314183454,1708050646519,-61.14441839,0.00039067,31]
[314183455,1708050646529,-261.9254201,0.00039067,31]
[314183456,1708050646538,-500.0,0.00039067,31]
[314183457,1708050646547,-537.84409231,0.00039067,31]
[314183458,1708050646556,-500.0,0.00039067,31]
[314183459,1708050646566,-166.62597523,0.00039067,31]
[314183460,1708050646575,-500.0,0.00039067,31]
[314183461,1708050646586,-500.0,0.00039067,31]
[314183462,1708050646595,-500.0,0.00039067,31]
[314183463,1708050646604,-500.0,0.00039067,31]
[314183464,1708050646614,-1273.15,0.000398,30]
[314183465,1708050646622,-24871.04377805,0.0003988,2]
[314183466,1708050646649,-500.0,0.00039067,31]
[314183467,1708050646659,-500.0,0.00039067,31]
[314183468,1708050646668,-500.0,0.00039067,31]
[314183469,1708050646677,-20909.5437612,0.0003988,2]
[314183470,1708050665090,4655.90663048,0.00022401,2]
[314183471,1708050665135,3021.0,0.0002199,2]
[314183472,1708050965087,1395.14936582,0.0002199,2]
[314183474,1708051752627,200.0,0.00023383,30]
[314183475,1708051752678,200.0,0.00023383,30]
[314183476,1708051752722,200.0,0.00023383,30]
[314183477,1708051752790,200.0,0.00023383,30]
[314183478,1708051752838,200.0,0.00023383,30]
[314183485,1708051831725,-1035.69009875,0.00023999,2]
[314183487,1708051831738,-1907.02645163,0.00023999,2]
[314183490,1708051831752,-702.41903978,0.00023999,2]
[314183492,1708051831788,-400.08481297,0.00023999,2]
[314183493,1708051831800,-85.94662989,0.00023999,2]
[314183494,1708051831809,-181.98147417,0.000249,2]
[314183495,1708051831819,-161.75480485,0.000249,2]
[314183496,1708051831828,-7.69803009,0.00024999,2]
[314183497,1708051831842,-235.59620303,0.00024999,2]
[314183498,1708051831851,-741.20212439,0.00025,3]
[314183499,1708051831868,-508.79787561,0.00025,3]
[314183500,1708051831877,-1300.0,0.00027,3]
[314183501,1708051831887,-1350.0,0.00029,3]
[314183502,1708051831897,-760.87837249,0.000303,4]
[314183503,1708051831906,-400.0,0.00032899,3]
[314183504,1708051831916,-150.0,0.00032899,3]
[314183505,1708051831926,-150.0,0.00032899,3]
[314183506,1708051831936,-11221.00603844,0.00032899,4]
[314183507,1708051831946,-6067.37712395,0.000329,2]
[314183508,1708051831956,-497.0,0.00032968,2]
[314183509,1708051832129,-499.99,0.00032968,2]
[314183510,1708051832139,-155.0,0.00033847,4]
[314183511,1708051832148,-999.99,0.00033847,2]
[314183512,1708051832158,-155.5545743,0.00034244,4]
[314183513,1708051832167,-154.44,0.00034245,2]
[314183514,1708051832177,-549.76,0.00034245,2]
[314183515,1708051832188,-317.69,0.00034245,2]
[314183516,1708051832199,-23900.0,0.00034245,2]
[314183517,1708051832209,-377.25,0.00034245,2]
[314183518,1708051832219,-150.0,0.00034313,2]
[314183519,1708051832228,-250.0,0.00034447,2]
[314183520,1708051832238,-167.97,0.00034521,2]
[314183521,1708051832248,-150.0,0.00034548,10]
[314183522,1708051832257,-4070.08,0.0003456,2]
[314183523,1708051832267,-250.0,0.000346,2]
[314183524,1708051832277,-294.82,0.00034633,5]
[314183525,1708051832285,-150.29,0.00034727,5]
[314183526,1708051832295,-2000.0,0.00034801,2]
[314183527,1708051832305,-166.80829099,0.00034898,5]
[314183528,1708051832314,-5000.0,0.00035,7]
[314183529,1708051832323,-5000.0,0.00035,7]
[314183530,1708051832333,-6929.75255976,0.00035,7]
[314183531,1708051832344,-228.73655637,0.00035136,7]
[314183532,1708051832353,-3647.08748994,0.00035137,10]
[314183533,1708051832362,-497.0,0.00035232,2]
[314183534,1708051832371,-200.0,0.00035352,3]
[314183535,1708051832382,-450.24,0.00035438,2]
[314183536,1708051832393,-9059.57790299,0.000356,2]
[314183537,1708051832408,-385.4077356,0.000356,2]
[314183538,1708051832425,-4060.03712192,0.000356,2]
[314183539,1708051832438,-255.97559429,0.000356,2]
[314183540,1708051832452,-3187.0016452,0.000356,2]
[314183541,1708051832461,-250.0,0.00035649,111]
[314183542,1708051832470,-178.56,0.00035686,2]
[314183543,1708051832479,-472.73,0.0003571,2]
[314183544,1708051832488,-377.25,0.00035889,2]
[314183545,1708051832497,-178.56,0.00036151,2]
[314183546,1708051832506,-245.5,0.0003623,2]
[314183547,1708051832516,-178.56,0.00036616,2]
[314183548,1708051832526,-178.56,0.0003708,2]
[314183549,1708051832535,-151.0,0.00037482,4]
[314183550,1708051832545,-497.0,0.00037496,2]
[314183551,1708051832554,-377.25,0.00037533,2]
[314183552,1708051832563,-178.56,0.00037545,2]
[314183553,1708051832573,-2460.2179,0.00037698,2]
[314183554,1708051832582,-105201.8639,0.00037698,2]
[314183555,1708051832592,-39041.44591479,0.000377,2]
[314183556,1708051832601,-1429.88373063,0.000377,2]
[314183557,1708051832611,-46879.60995244,0.00037798,2]
[314183558,1708051832620,-1000.0,0.000378,5]
[314183559,1708051832629,-1000.0,0.000378,5]
[314183560,1708051832638,-1000.0,0.000378,5]
[314183561,1708051832647,-1000.0,0.000378,5]
[314183562,1708051832657,-1000.0,0.000378,5]
[314183563,1708051832668,-1000.0,0.000378,5]
[314183564,1708051832677,-1000.0,0.000378,5]
[314183565,1708051832686,-1000.0,0.000378,5]
[314183566,1708051832695,-1000.0,0.000378,5]
[314183567,1708051832704,-1000.0,0.000378,5]
[314183568,1708051832714,-1000.0,0.000378,5]
[314183569,1708051832723,-1000.0,0.000378,5]
[314183570,1708051832732,-1000.0,0.000378,5]
[314183571,1708051832741,-1000.0,0.000378,5]
[314183572,1708051832750,-1000.0,0.000378,5]
[314183573,1708051832760,-1000.0,0.000378,5]
[314183574,1708051832769,-1000.0,0.000378,5]
[314183575,1708051832779,-1000.0,0.000378,5]
[314183576,1708051832788,-1000.0,0.000378,5]
[314183577,1708051832797,-1000.0,0.000378,5]
[314183578,1708051832807,-1000.0,0.000378,5]
[314183579,1708051832816,-1000.0,0.000378,5]
[314183580,1708051832824,-1000.0,0.000378,5]
[314183581,1708051832834,-1000.0,0.000378,5]
[314183582,1708051832844,-1000.0,0.000378,5]
[314183583,1708051832852,-1000.0,0.000378,5]
[314183584,1708051832861,-1000.0,0.000378,5]
[314183585,1708051832871,-1000.0,0.000378,5]
[314183586,1708051832880,-1000.0,0.000378,5]
[314183587,1708051832889,-1000.0,0.000378,5]
[314183588,1708051832899,-1000.0,0.000378,5]
[314183589,1708051832908,-1000.0,0.000378,5]
[314183590,1708051832917,-1000.0,0.000378,5]
[314183591,1708051832926,-1000.0,0.000378,5]
[314183592,1708051832935,-1000.0,0.000378,5]
[314183593,1708051832945,-1000.0,0.000378,5]
[314183594,1708051832954,-294.0,0.000378,5]
[314183595,1708051832964,-10891.7235,0.000378,2]
[314183596,1708051832973,-3596.17,0.000378,5]
[314183597,1708051832983,-219.82,0.00037849,2]
[314183598,1708051832992,-206.0,0.00037873,2]
[314183599,1708051833001,-268.0473,0.00037887,2]
[314183600,1708051833011,-3127.3499,0.00037887,2]
[314183601,1708051833020,-166.2088539,0.00038,4]
[314183602,1708051833030,-500.0,0.00038,7]
[314183603,1708051833040,-205.88531345,0.00038149,3]
[314183604,1708051833050,-2765.60585353,0.00038149,5]
[314183605,1708051833059,-615.44673939,0.00038149,5]
[314183606,1708051833068,-2500.0,0.00038156,2]
[314183607,1708051833077,-151.0,0.00038246,2]
[314183608,1708051833087,-26134.5556,0.00038256,3]
[314183609,1708051833096,-5000.0,0.00038256,3]
[314183610,1708051833105,-498.75092071,0.00038256,8]
[314183611,1708051833115,-500.0,0.00038356,7]
[314183612,1708051833123,-551.55411845,0.00038356,9]
[314183613,1708051833132,-500.0,0.00038356,7]
[314183614,1708051833141,-500.0,0.00038356,7]
[314183615,1708051833150,-239.70892614,0.00038356,7]
[314183616,1708051833159,-506.95688496,0.00038356,7]
[314183617,1708051833168,-263.34810231,0.00038356,7]
[314183618,1708051833177,-534.46512684,0.00038356,7]
[314183619,1708051833186,-522.42015714,0.00038356,7]
[314183620,1708051833195,-522.5600601,0.00038356,7]
[314183621,1708051833204,-528.81011558,0.00038356,7]
[314183622,1708051833214,-525.24994433,0.00038356,7]
[314183623,1708051833223,-522.36207732,0.00038356,7]
[314183624,1708051833231,-500.0,0.00038356,7]
[314183625,1708051833241,-605.6995414,0.00038356,7]
[314183626,1708051833250,-500.0,0.00038356,7]
[314183627,1708051833259,-535.42697154,0.00038356,7]
[314183628,1708051833268,-519.19866568,0.00038356,7]
[314183629,1708051833278,-504.81100395,0.00038356,7]
[314183630,1708051833289,-528.42495956,0.00038356,7]
[314183631,1708051833301,-531.59033274,0.00038356,7]
[314183632,1708051833311,-569.75041604,0.00038356,7]
[314183633,1708051833320,-514.93908967,0.00038356,7]
[314183634,1708051833329,-537.70548668,0.00038356,7]
[314183635,1708051833339,-518.11059584,0.00038356,7]
[314183636,1708051833351,-500.0,0.00038356,7]
[314183637,1708051833362,-515.33706477,0.00038356,7]
[314183638,1708051833371,-185.60052022,0.00038356,2]
[314183639,1708051833381,-516.46068401,0.00038356,7]
[314183640,1708051833395,-500.0,0.00038356,7]
[314183641,1708051833404,-505.79144142,0.00038356,7]
[314183642,1708051833414,-506.92264094,0.00038356,7]
[314183643,1708051833423,-502.20995044,0.00038356,7]
[314183644,1708051833433,-521.8278041,0.00038356,7]
[314183645,1708051833442,-486.25242638,0.00038356,7]
[314183646,1708051833451,-506.04481929,0.00038356,7]
[314183647,1708051833461,-541.49479608,0.00038356,7]
[314183648,1708051833471,-483.78958449,0.00038356,7]
[314183649,1708051833482,-527.06553297,0.00038356,7]
[314183650,1708051833492,-500.0,0.00038356,7]
[314183651,1708051833505,-389.48967344,0.00038356,7]
[314183652,1708051833515,-250.0,0.00038356,7]
[314183653,1708051833527,-535.2577593,0.00038356,7]
[314183654,1708051833537,-500.0,0.00038356,7]
[314183655,1708051833548,-500.0,0.00038356,7]
[314183656,1708051833558,-517.24885466,0.00038356,7]
[314183657,1708051833568,-500.0,0.00038356,7]
[314183658,1708051833577,-500.0,0.00038356,7]
[314183659,1708051833589,-519.02155341,0.00038356,7]
[314183660,1708051833598,-517.59316791,0.00038356,7]
[314183661,1708051833608,-553.67542073,0.00038356,7]
[314183662,1708051833617,-518.99863655,0.00038356,7]
[314183663,1708051833627,-500.0,0.00038356,7]
[314183664,1708051833637,-528.74627869,0.00038356,7]
[314183665,1708051833646,-522.17839068,0.00038356,7]
[314183666,1708051833655,-511.34678017,0.00038356,7]
[314183667,1708051833670,-528.81101581,0.00038356,7]
[314183668,1708051833680,-518.31730962,0.00038356,7]
[314183669,1708051833689,-513.02094441,0.00038356,7]
[314183670,1708051833701,-508.95992964,0.00038356,7]
[314183671,1708051833711,-522.11984285,0.00038356,7]
[314183672,1708051833721,-198.23546213,0.00038356,7]
[314183673,1708051833731,-520.67095974,0.00038356,7]
[314183674,1708051833741,-260.60913167,0.00038356,7]
[314183675,1708051833751,-500.0,0.00038356,7]
[314183676,1708051833761,-534.86331306,0.00038356,7]
[314183677,1708051833770,-514.64377815,0.00038356,7]
[314183678,1708051833780,-500.0,0.00038356,7]
[314183679,1708051833790,-520.82283132,0.00038356,7]
[314183680,1708051833800,-500.0,0.00038356,7]
[314183681,1708051833809,-524.3701104,0.00038356,7]
[314183682,1708051833818,-534.6761192,0.00038356,7]
[314183683,1708051833828,-500.0,0.00038356,2]
[314183684,1708051833838,-533.38970803,0.00038356,7]
[314183685,1708051833847,-292.18851836,0.00038356,7]
[314183686,1708051833857,-508.57171451,0.00038356,7]
[314183687,1708051833867,-530.33165362,0.00038356,7]
[314183688,1708051833876,-533.18087676,0.00038356,7]
[314183689,1708051833885,-537.20372031,0.00038356,7]
[314183690,1708051833895,-576.54406912,0.00038356,7]
[314183691,1708051833905,-527.36926536,0.00038356,7]
[314183692,1708051833914,-529.95313574,0.00038356,7]
[314183693,1708051833923,-500.0,0.00038356,7]
[314183694,1708051833933,-514.96252784,0.00038356,7]
[314183695,1708051833942,-500.0,0.00038356,7]
[314183696,1708051833951,-500.0,0.00038356,7]
[314183697,1708051833960,-519.25432797,0.00038356,7]
[314183698,1708051833970,-507.18055812,0.00038356,7]
[314183699,1708051833980,-500.0,0.00038356,7]
[314183700,1708051833989,-500.0,0.00038356,7]
[314183701,1708051833998,-511.29327338,0.00038356,7]
[314183702,1708051834008,-500.0,0.00038356,7]
[314183703,1708051834017,-512.01304966,0.00038356,7]
[314183704,1708051834027,-554.69474235,0.00038356,7]
[314183705,1708051834036,-500.0,0.00038356,7]
[314183706,1708051834046,-500.0,0.00038356,7]
[314183707,1708051834055,-511.79110127,0.00038356,7]
[314183708,1708051834064,-500.0,0.00038356,7]
[314183709,1708051834074,-546.32924457,0.00038356,7]
[314183710,1708051834082,-470.72412666,0.00038356,7]
[314183711,1708051834092,-512.03206698,0.00038356,7]
[314183712,1708051834101,-1021.27496584,0.00038356,7]
[314183713,1708051834110,-537.41740863,0.00038356,7]
[314183714,1708051834120,-507.17554812,0.00038356,7]
[314183715,1708051834129,-563.83059562,0.00038356,7]
[314183716,1708051834138,-500.0,0.00038356,7]
[314183717,1708051834147,-517.63894231,0.00038356,7]
[314183718,1708051834156,-513.57792761,0.00038356,7]
[314183719,1708051834165,-514.54453149,0.00038356,7]
[314183720,1708051834175,-523.8725908,0.00038356,7]
[314183721,1708051834184,-500.0,0.00038356,7]
[314183722,1708051834193,-524.0380512,0.00038356,7]
[314183723,1708051834202,-524.34393656,0.00038356,7]
[314183724,1708051834211,-500.0,0.00038356,7]
[314183725,1708051834220,-222.73636152,0.00038356,7]
[314183726,1708051834229,-546.93725848,0.00038356,7]
[314183727,1708051834238,-505.21113562,0.00038356,7]
[314183728,1708051834247,-500.0,0.00038356,7]
[314183729,1708051834256,-451.60198848,0.00038356,7]
[314183730,1708051834265,-516.22439056,0.00038356,7]
[314183731,1708051834274,-566.88789384,0.00038356,7]
[314183732,1708051834283,-519.53318558,0.00038356,7]
[314183733,1708051834292,-505.77617873,0.00038356,7]
[314183734,1708051834301,-500.0,0.00038356,7]
[314183735,1708051834310,-529.60115804,0.00038356,7]
[314183736,1708051834319,-548.92356665,0.00038356,7]
[314183737,1708051834329,-500.0,0.00038356,7]
[314183738,1708051834338,-500.0,0.00038356,7]
[314183739,1708051834347,-553.60394107,0.00038356,7]
[314183740,1708051834356,-500.0,0.00038356,7]
[314183741,1708051834366,-514.84431545,0.00038356,7]
[314183742,1708051834376,-502.61581481,0.00038356,7]
[314183743,1708051834385,-515.1386531,0.00038356,7]
[314183744,1708051834395,-500.0,0.00038356,7]
[314183745,1708051834404,-540.87691937,0.00038356,7]
[314183746,1708051834413,-525.54924831,0.00038356,7]
[314183747,1708051834423,-542.01851763,0.00038356,7]
[314183748,1708051834432,-532.47085617,0.00038356,7]
[314183749,1708051834442,-500.0,0.00038356,7]
[314183750,1708051834452,-537.48342321,0.00038356,7]
[314183751,1708051834461,-564.27692392,0.00038356,7]
[314183752,1708051834470,-552.86422913,0.00038356,7]
[314183753,1708051834480,-520.84932787,0.00038356,7]
[314183754,1708051834489,-500.0,0.00038356,7]
[314183755,1708051834499,-542.94589444,0.00038356,7]
[314183756,1708051834509,-231.60466367,0.00038356,7]
[314183757,1708051834520,-500.0,0.00038356,7]
[314183758,1708051834529,-500.0,0.00038356,7]
[314183759,1708051834540,-528.41361686,0.00038356,7]
[314183760,1708051834550,-521.2072906,0.00038356,7]
[314183761,1708051834561,-506.23867492,0.00038356,7]
[314183762,1708051834571,-500.0,0.00038356,7]
[314183763,1708051834580,-500.0,0.00038356,7]
[314183764,1708051834591,-500.0,0.00038356,7]
[314183765,1708051834600,-547.94257592,0.00038356,7]
[314183766,1708051834610,-564.30044248,0.00038356,7]
[314183767,1708051834619,-500.0,0.00038356,7]
[314183768,1708051834630,-527.24875294,0.00038356,7]
[314183770,1708051834650,-500.0,0.00038356,7]
[314183772,1708051834661,-555.67656471,0.00038356,7]
[314183774,1708051834672,-545.39206361,0.00038356,7]
[314183776,1708051834682,-532.6723848,0.00038356,7]
[314183778,1708051834692,-545.74466862,0.00038356,7]
[314183780,1708051834702,-517.00866151,0.00038356,7]
[314183783,1708051834711,-505.63913196,0.00038356,7]
[314183785,1708051834721,-507.10028315,0.00038356,7]
[314183787,1708051834730,-550.20860012,0.00038356,7]
[314183789,1708051834740,-233.98724149,0.00038356,7]
[314183791,1708051834749,-528.07975251,0.00038356,7]
[314183793,1708051834760,-537.33329333,0.00038356,7]
[314183795,1708051834769,-500.0,0.00038356,7]
[314183797,1708051834779,-564.07427352,0.00038356,7]
[314183799,1708051834789,-500.0,0.00038356,7]
[314183800,1708051834798,-512.9336614,0.00038356,7]
[314183801,1708051834807,-454.19664251,0.00038356,7]
[314183802,1708051834816,-534.68994991,0.00038356,7]
[314183803,1708051834827,-1000.0,0.00038356,30]
[314183804,1708051834836,-533.99508549,0.00038356,7]
[314183805,1708051834849,-524.7304495,0.00038356,7]
[314183806,1708051834860,-500.0,0.00038356,7]
[314183807,1708051834869,-500.0,0.00038356,7]
[314183808,1708051834879,-518.8669804,0.00038356,7]
[314183809,1708051834889,-501.07227869,0.00038356,7]
[314183810,1708051834898,-546.29529059,0.00038356,7]
[314183811,1708051834907,-545.5262098,0.00038356,7]
[314183812,1708051834917,-534.27672967,0.00038356,7]
[314183813,1708051834926,-515.78035152,0.00038356,7]
[314183814,1708051834936,-500.0,0.00038356,7]
[314183815,1708051834945,-527.53925798,0.00038356,7]
[314183816,1708051834955,-500.0,0.00038356,7]
[314183817,1708051834965,-548.89132224,0.00038356,7]
[314183818,1708051834974,-214.89990239,0.00038356,7]
[314183819,1708051834984,-500.0,0.00038356,7]
[314183820,1708051834994,-396.5164583,0.00038356,7]
[314183821,1708051835004,-520.24606305,0.00038356,7]
[314183822,1708051835014,-500.0,0.00038356,7]
[314183823,1708051835023,-505.52272167,0.00038356,7]
[314183824,1708051835033,-491.30355256,0.00038356,7]
[314183825,1708051835044,-528.91602298,0.00038356,7]
[314183826,1708051835054,-500.0,0.00038356,7]
[314183827,1708051835064,-318.85897632,0.00038356,7]
[314183828,1708051835073,-547.22467518,0.00038356,7]
[314183829,1708051835083,-523.3114251,0.00038356,7]
[314183830,1708051835098,-511.72608362,0.00038356,7]
[314183831,1708051835107,-490.89099025,0.00038356,7]
[314183832,1708051835117,-489.55662512,0.00038356,7]
[314183833,1708051835127,-533.75827781,0.00038356,7]
[314183834,1708051835136,-524.17903145,0.00038356,7]
[314183835,1708051835146,-177.34687388,0.00038356,7]
[314183836,1708051835155,-638.983871,0.00038356,7]
[314183837,1708051835166,-201.56897334,0.00038356,7]
[314183838,1708051835175,-499.7173677,0.00038356,7]
[314183839,1708051835186,-522.58185027,0.00038356,7]
[314183840,1708051835196,-507.46544324,0.00038356,7]
[314183841,1708051835206,-500.0,0.00038356,7]
[314183842,1708051835216,-511.07582744,0.00038356,7]
[314183843,1708051835226,-500.0,0.00038356,7]
[314183844,1708051835235,-455.6310498,0.00038356,7]
[314183845,1708051835245,-500.0,0.00038356,7]
[314183846,1708051835254,-500.0,0.00038356,7]
[314183847,1708051835264,-543.32595861,0.00038356,7]
[314183848,1708051835273,-492.88235895,0.00038356,7]
[314183849,1708051835283,-500.0,0.00038356,7]
[314183850,1708051835292,-526.46931983,0.00038356,7]
[314183851,1708051835301,-465.51146474,0.00038356,7]
[314183852,1708051835311,-503.54436677,0.00038356,7]
[314183853,1708051835320,-554.20099959,0.00038356,7]
[314183854,1708051835330,-514.01725901,0.00038356,7]
[314183855,1708051835341,-560.80830571,0.00038356,7]
[314183856,1708051835354,-546.94,0.00038356,7]
[314183857,1708051835364,-531.74186028,0.00038356,7]
[314183858,1708051835373,-518.75226802,0.00038356,7]
[314183859,1708051835383,-523.39687247,0.00038356,7]
[314183860,1708051835392,-500.0,0.00038356,7]
[314183861,1708051835402,-605.6,0.00038356,7]
[314183862,1708051835411,-599.79901129,0.00038356,7]
[314183863,1708051835421,-520.50301167,0.00038356,7]
[314183864,1708051835430,-500.0,0.00038356,7]
[314183865,1708051835440,-542.68080216,0.00038356,7]
[314183866,1708051835449,-500.0,0.00038356,7]
[314183867,1708051835459,-514.8009809,0.00038356,7]
[314183868,1708051835468,-515.49942367,0.00038356,7]
[314183869,1708051835477,-500.0,0.00038356,7]
[314183870,1708051835487,-523.44646167,0.00038356,7]
[314183871,1708051835497,-521.09391331,0.00038356,7]
[314183872,1708051835506,-450.64220649,0.00038356,7]
[314183873,1708051835515,-522.57094919,0.00038356,7]
[314183874,1708051835525,-502.69389065,0.00038356,7]
[314183875,1708051835534,-500.0,0.00038356,7]
[314183876,1708051835543,-527.17091595,0.00038356,7]
[314183877,1708051835554,-537.39399122,0.00038356,7]
[314183878,1708051835564,-550.17305247,0.00038356,7]
[314183879,1708051835574,-500.0,0.00038356,7]
[314183880,1708051835583,-502.99659244,0.00038356,7]
[314183881,1708051835595,-454.3787956,0.00038356,7]
[314183882,1708051835604,-533.4710648,0.00038356,7]
[314183883,1708051835613,-520.17218374,0.00038356,7]
[314183884,1708051835623,-522.25812363,0.00038356,7]
[314183885,1708051835633,-500.86541986,0.00038356,7]
[314183886,1708051835643,-522.06854496,0.00038356,7]
[314183887,1708051835652,-525.56784341,0.00038356,7]
[314183888,1708051835662,-523.68896912,0.00038356,7]
[314183889,1708051835673,-500.0,0.00038356,7]
[314183890,1708051835682,-519.9706386,0.00038356,7]
[314183891,1708051835694,-526.41947377,0.00038356,7]
[314183892,1708051835703,-500.0,0.00038356,7]
[314183893,1708051835715,-531.40493868,0.00038356,7]
[314183894,1708051835724,-529.29257346,0.00038356,7]
[314183895,1708051835733,-524.50924556,0.00038356,7]
[314183896,1708051835743,-500.0,0.00038356,7]